[Event "Villarobledo Online Qualifyer"]
[Site "playchess.com #155672"]
[Date "2009.05.23"]
[Round "1"]
[White "MandM"]
[Black "Thenaar"]
[Result "1-0"]
[WhiteElo "1486"]
[BlackElo "2144"]
[PlyCount "25"]
[EventDate "2009.05.23"]
[EventType "swiss (blitz)"]
[TimeControl "180+2"]

1. e4 {[%emt 0:00:03]} Nc6 {[%emt 0:00:01]} 2. Nf3 {[%emt 0:00:01]} f5 {[%emt
0:00:19]} 3. e5 {[%emt 0:00:03]} d6 {[%emt 0:01:10]} 4. d4 {[%emt 0:00:06]}
dxe5 {[%emt 0:00:21]} 5. dxe5 {[%emt 0:00:11]} Qxd1+ {[%emt 0:00:07]} 6. Kxd1 {
[%emt 0:00:00]} Be6 {[%emt 0:00:08]} 7. Nc3 {[%emt 0:00:03]} O-O-O+ {[%emt 0:
00:06]} 8. Bd2 {[%emt 0:00:01]} h6 {[%emt 0:00:03]} 9. Bb5 {[%emt 0:00:03]} g5
{[%emt 0:00:03]} 10. Ke2 {[%emt 0:00:06]} a6 {[%emt 0:00:03]} 11. Bxc6 {[%emt
0:00:02]} Bc4+ {[%emt 0:00:01]} 12. Ke3 {[%emt 0:00:07]} bxc6 {[%emt 0:00:00]}
13. b3 {[%emt 0:00:03] White restart ok. Tempo} 1-0

[Event "Villarobledo Online Qualifyer"]
[Site "playchess.com #155672"]
[Date "2009.05.23"]
[Round "13"]
[White "Unicorn"]
[Black "Kendo"]
[Result "1/2-1/2"]
[WhiteElo "2609"]
[BlackElo "2747"]
[PlyCount "24"]
[EventDate "2009.05.23"]
[EventType "swiss (blitz)"]
[TimeControl "180+2"]

{Unicorn offers a draw} 1. d4 {[%emt 0:00:02]} d5 {[%emt 0:00:12]} 2. c4 {
[%emt 0:00:02]} c6 {[%emt 0:00:01]} 3. Nf3 {[%emt 0:00:07]} Nf6 {[%emt 0:00:02]
} 4. Nc3 {[%emt 0:00:01]} e6 {[%emt 0:00:01]} 5. Bg5 {[%emt 0:00:02]} h6 {
[%emt 0:00:04]} 6. Bh4 {[%emt 0:00:01]} Be7 {[%emt 0:00:10]} 7. cxd5 {[%emt 0:
00:02]} exd5 {[%emt 0:00:01]} 8. e3 {[%emt 0:00:02]} Bf5 {[%emt 0:00:03]} 9.
Bd3 {[%emt 0:00:05]} Bxd3 {[%emt 0:00:02]} 10. Qxd3 {[%emt 0:00:00]} Nbd7 {
[%emt 0:00:03]} 11. O-O {[%emt 0:00:01]} O-O {[%emt 0:00:03]} 12. Rab1 {[%emt
0:00:01] Kendo bietet Remis} a5 {[%emt 0:00:02]} 1/2-1/2